Workbook

Sheet Instructions
A1: Manufacturer | B1: Laticrete
A2: File as | B2: L
A3: Product Code | B3: I
A4: CCTD Effective Date | B4: 6/1/25 (Updated)
A8: Enter your Company Name
B10: Click on "Index" to set the print area for the price list index
B11: Then you can send it to print
B14: Click on "Suggested Price List" to set the print area for Conestoga Tile's suggested price list.
B15: Then you can send it to print
B18: Enter your discount codes if you want a personal net cost sheet.
B20: Product
B21: Code | C21: Disc. %
B22: =+B3 -> I
B24: Click on "Your Cost" to set the print area for your personal cost report.
B25: Then you can send it to print
A28: Discount: | B28: To help establish your price list, enter the gross profit percent for each type of product.
B29: If you want to use Conestoga Tile's list price, leave them blank.
A31: Round Nickel: | B31: If you always want your price to round to the nearest nickel, enter "YES".
B32: If you enter "NO", it will NOT round to the nearest nickel.
A34: Ending Cents: | B34: If you always want your price to end with a certain cents, enter that cent value.
B35: If you leave it "blank" will NOT round to this cent value.
B37: Group | C37: GP Margin | D37: GP Margin % for | F37: Round Nickel | G37: add/subtract | H37: Ending Cents
B38: 1 | D38: =+#REF! ->  | F38: No | G38: 0
B39: 2 | D39: =+#REF! ->  | F39: No | G39: 0
B40: 3 | D40: =+#REF! ->  | F40: No | G40: 0
B41: 4 | D41: =+#REF! ->  | F41: No | G41: 0
B42: 5 | D42: =+#REF! ->  | F42: No | G42: 0
B43: 6 | D43: =+#REF! ->  | F43: No | G43: 0
B44: 7 | D44: =+#REF! ->  | F44: No | G44: 0
B45: 8 | D45: =+#REF! ->  | F45: No | G45: 0
A47: If you want to manually adjust your price list, hit "F5" and go to "Customer_Cost" to manually adjust pricing.
A48: You can enter a value in the column labeled "Adj." to change your price manually.
B50: Click on "Your Price Calculation" to set the print area for your personal cost calculation report.
B51: Then you can send it to print
B54: Click on "Your Price List" to set the print area for your personal price list.
B55: Then you can send it to print
H56: Yes
A58: If you have any questions on how to best use this spreadsheet, please feel free to contact
A59: Jim Vogel at (800) 422-6860, ext. 4201 or via e-mail at jimvogel@cctd.com

Sheet Index
G2: ="File '"&Instructions!B2&"' - "&Instructions!B1 -> File 'L' - Laticrete
A5: ="Price List Index - "&Instructions!B4 -> Price List Index - 6/1/25 (Updated)
A10: Page | C10: Series | E10: Product Type | H10: Page | J10: Series | L10: Product Type
C11: Mortars & Adhesives | H11: 13 | J11: 921 Primer Plus | L11: Underlayment
A12: 1 | C12: 15 Premium Mastic | E12: Mastic | H12: 13 | J12: 911 Vapor Ban E | L12: Moisture Control
A13: 1 | C13: 209 Floor Mud | E13: Mortar | H13: 14 | J13: 912 Vapor Ban ER | L13: Moisture Control
A14: 1 | C14: 226 Thick Bed Mortar | E14: Mortar | H14: 14 | J14: 914 Vapor Ban Primer ER | L14: Moisture Control
A15: 1 | C15: 229 Quick Cure Mortar Bed | E15: Mortar | H15: 14 | J15: 915 Vapor Ban Primer W | L15: Moisture Control
A16: 1 | C16: 3701 Fortified Mortar Bed | E16: Mortar | H16: 14 | J16: NXT Tool Kit | L16: Tools
A17: 1 | C17: 3701 Lite Mortar | E17: Mortar | H17: 14 | J17: NIVCOMP Digital Level | L17: Tools
A18: 1-2 | C18: 3701 Lite Mortar R | E18: Mortar | H18: 14 | J18: ELEVATION Pins | L18: Tools
A19: 2 | C19: 272 Premium Floor and Wall | E19: Thin-Set Mortar | H19: 14 | J19: Pro-Kart | L19: Tools
A20: 2 | C20: 317 Floor and Wall | E20: Thin-Set Mortar | H20: 14 | J20: Pro-Mix Station | L20: Tools
A21: 2 | C21: 252 Silver | E21: Thin-Set Mortar | H21: 14 | J21: Liner for Pro-Mix Station | L21: Tools
A22: 2 | C22: 253 Gold | E22: Thin-Set Mortar | H22: 14 | J22: 177 Strata Mat | L22: Underlayment (Uncoupling)
A23: 2 | C23: 253R Gold Rapid | E23: Thin-Set Mortar | H23: 15 | J23: 177 Strata Mat XT | L23: Underlayment (Uncoupling)
A24: 2 | C24: 254 Platinum | E24: Thin-Set Mortar | J24: Pedestals, Plaza & Deck System
A25: 3 | C25: 254R Platinum Rapid | E25: Thin-Set Mortar | H25: 15 | J25: 9100 Tile Drain Mat | L25: Plaza & Deck System
A26: 3 | C26: 254 Platinum Plus | E26: Thin-Set Mortar | H26: 15-16 | J26: NXT Pedestal System | L26: Plaza & Deck System
A27: 3 | C27: 279 Tri-Lite Floor and Wall | E27: Lightweight Mortar | H27: 16 | J27: Blue 92 Anti-Fracture Membrane | L27: Anti-Fracture
A28: 3 | C28: 279R Tri-Lite Rapid | E28: Lightweight Mortar | H28: 16 | J28: 9200 Crack Suppression Kit | L28: Anti-Fracture
A29: 3 | C29: 289 Multimax 1 | E29: Lightweight Mortar | H29: 16 | J29: 9209 Fracture Ban SC | L29: Anti-Fracture
A30: 3-4 | C30: 289 Multimax Lite | E30: Lightweight Mortar | J30: Sound Control/Crack Suppression
A31: 4 | C31: 4-XLT | E31: Thin-Set Mortar | H31: 16 | J31: 125 Tri Max | L31: Sound Control/Crack
A32: 4 | C32: 4-XLT Rapid | E32: Thin-Set Mortar | H32: 16 | J32: 170 Sound & Crack Isolation Mat | L32: Sound Control/Crack
A33: 4 | C33: LHT Large & Heavy Tile Mortar | E33: Thin-Set Mortar | H33: 16 | J33: 170.5 Sound & Crack Isolation Mat | L33: Sound Control/Crack
A34: 4 | C34: LHT Plus Large & Heavy Tile Mortar | E34: Thin-Set Mortar | H34: 16 | J34: 178 Fracture Ban | L34: Sound Control/Crack
A35: 4-5 | C35: Sure Set LHT | E35: Versatile Adhesive Mortar | J35: Shower Systems & Waterproofing
A36: 5 | C36: 296 Glass Tile Adhesive Lite | E36: Thin-Set Mortar | H36: 17 | J36: Hydro Ban Board | L36: Shower & Drain System
A37: 5 | C37: 300 Epoxy Adhesive | E37: Epoxy Adhesive | H37: 17 | J37: Hydro Ban Board Accessories | L37: Shower & Drain System
A38: 5 | C38: Biogreen 300 Epoxy Adhesive | E38: Epoxy Adhesive | H38: 17 | J38: Hydro Ban Sheet Membrane | L38: Shower & Drain System
A39: 5 | C39: 310 Cordless Mixer | E39: Epoxy Adhesive | H39: 17 | J39: Hydro Ban Sealing Tape | L39: Shower & Drain System
A40: 6 | C40: 310 Stone Adhesive | E40: Epoxy Adhesive | H40: 17 | J40: Hydro Ban Adhesive & Sealant | L40: Shower & Drain System
A41: 6 | C41: 310 Rapid Stone Adhesive | E41: Epoxy Adhesive | H41: 17 | J41: Hydro Ban Preformed Corners | L41: Shower & Drain System
A42: 6 | C42: Prime-N-Bond | E42: Multipurpose Bonding Primer | H42: 17 | J42: Hydro Ban Collars | L42: Shower & Drain System
A43: 6 | C43: 333 Super Flexible Additive | E43: Thin-Set & Mortar Additive | H43: 17 | J43: Hydro Ban Drain Collars | L43: Shower & Drain System
A44: 6 | C44: 3701 Mortar Admix | E44: Thin-Set & Mortar Additive | H44: 17 | J44: Hydro Ban Peel & Stick Sheet Membrane Accessories "
C45: Grouts | H45: 18 | J45: Hydro Ban Pre-Sloped Shower Pans | L45: Shower & Drain System
A46: 6 | C46: 1500 Sanded Grout | E46: Grout | H46: 18 | J46: Hydro Ban Modular Pre-Sloped Shower Pan + Preformed Curb "
A47: 6-7 | C47: 1600 Unsanded Grout | E47: Grout | H47: 18 | J47: Hydro Ban Shower Pan - Disc 1/26/26 | L47: Shower & Drain System
A48: 7 | C48: 2300 Ready-To-Use Grout | E48: Grout | H48: 18 | J48: Hydro Ban Curb | L48: Shower & Drain System
A49: 7 | C49: 2500 PermaColor Grout | E49: Grout | H49: 18 | J49: Hydro Ban Shower Pan Kit - Disc 1/26/26 | L49: Shower & Drain System
A50: 7-8 | C50: 2600 PermaColor Select Base Grout | E50: Grout | H50: 19 | J50: Hydro Ban Point Drain Grate | L50: Shower & Drain System
A51: 8-9 | C51: 2600 PermaColor Select Color Kit | E51: Grout | H51: 19 | J51: Hydro Ban Accessories | L51: Shower & Drain System
A52: 9 | C52: 1200 SpectraLOCK PRO Premium Grout Part AB Liquids | H52: 19 | J52: Hydro Ban Preformed Niche | L52: Shower & Drain System
A53: 9 | C53: 1200 SpectraLOCK Grout Part C | E53: Grout | H53: 19 | J53: Hydro Ban Preformed Seat | L53: Shower & Drain System
A54: 9 | C54: 1200 SpectraLOCK Dazzle | E54: Grout | H54: 19 | J54: Hydro Ban Preformed Bench | L54: Shower & Drain System
A55: 9 | C55: SpectraLOCK PRO Premium Translucent Grout | H55: 19 | J55: Hydro Ban Bonding Flange Drain | L55: Shower & Drain System
A56: 10 | C56: 3100 SpectraLOCK 1 | E56: Grout | H56: 19 | J56: Hydro Ban Linear Pre-Sloped Shower Pans | L56: Shower & Drain System
A57: 10 | C57: SpectraLOCK 2000 IG | E57: Grout | H57: 19 | J57: Hydro Ban Linear Drain "T" Trough | L57: Shower & Drain System
A58: 10 | C58: SpectraLOCK 2000 IG Liquid | E58: Grout | H58: 20 | J58: Hydro Ban Linear Drain Side Outlet Trough | L58: Shower & Drain System
C59: Caulks/Sealants | H59: 20 | J59: Hydro Ban Linear Drain Threaded Connector Trough - Shower & Drain System
A60: 10-11 | C60: 6200 Latasil | E60: Caulk/Sealant | H60: 20 | J60: Hydro Ban Linear Drain Offset Oval Grate | L60: Shower & Drain System
A61: 11 | C61: 9118 Latasil Primer | E61: Caulk/Sealant | H61: 20-21 | J61: Hydro Ban Linear Drain Wedge Wire Grate | L61: Shower & Drain System
A62: 11 | C62: 7100/7200 Premium Acrylic Caulk | E62: Caulk/Sealant | H62: 21 | J62: Hydro Ban Linear Drain Tile-In Grate | L62: Shower & Drain System
C63: Underlayments | J63: Waterproofing
A64: 11 | C64: 900 NXT Level | E64: Underlayment | H64: 21 | J64: 9235 Waterproofing Membrane | L64: WaterProofing
A65: 11-12 | C65: 903 NXT Level Flow | E65: Underlayment | H65: 21 | J65: 9259 Hydro Ban Cementitious Waterproofing Membrane
A66: 12 | C66: 902 NXT Level Plus | E66: Underlayment | H66: 21 | J66: 9255 Hydro Ban | L66: WaterProofing
A67: 12 | C67: 919 NXT Level Plus Lite | E67: Underlayment | H67: 21 | J67: 9277 Hydro Ban 1 | L67: WaterProofing
A68: 12 | C68: 904 NXT Patch | E68: Underlayment | H68: 21 | J68: 9266 Hydro Ban Quick Cure | L68: WaterProofing
A69: 13 | C69: 918 NXT Skim Lite | E69: Underlayment | H69: 22 | J69: 9250 Hydro Ban XP | L69: WaterProofing
A70: 13 | C70: 907/908 NXT Level DL | E70: Overlay | H70: 22 | J70: 9265 Hydro Barrier Plus | L70: WaterProofing
A71: 13 | C71: 960 NXT Level SP | E71: Overlay | H71: 22 | J71: Latapoxy Waterproof Flashing Mortar | L71: WaterProofing
A73: This price list is available electronically on an Excel spreadsheet at www.conestogatile.com/pricelists.
A75: The spreadsheet has many special features to assist you. Apply your discount to generate your net costs for your purchasing department. Apply your standard gross margin percentage or custom prices to generate your own custom price list for your showroom. Print out individual price list for each series that can be attached to the back of your sample boards for easy reference.

Sheet Price List
B1: Mortars/Ahesive | E1: Size | I1: Description | S1: =IF(Suggested="Yes",AA1,AG1) -> 0.05 | T1: EA | U1: =+Instructions!$B$3 -> I | W1: =+Instructions!$C$22 -> 0 | X1: =ROUND($AA1*(1-W1)+0.004999,2) -> 0.05 | Z1: new | AA1: 0.05 | AB1: =+W1 -> 0 | AC1: 0.05 | AD1: =(AG1-AC1)/AG1 -> 0 | AF1: 1 | AG1: =SUM(AJ1:AL1)+AE1 -> 0.05 | AJ1: =ROUND(AC1/(1-VLOOKUP(AF1,Group,2,FALSE)),2) -> 0.05 | AK1: =IF(VLOOKUP(AF1,Group,5,FALSE)="YES",VLOOKUP(ROUND(ROUND(AJ1,1)-AJ1,2),Round,2,FALSE)+VLOOKUP(AF1,Group,6,FALSE),0) -> 0 | AL1: =IF(VLOOKUP(AF1,Group,7,FALSE)="",0,ROUND(AJ1-0.04999,1)-AJ1+AM1) -> 0 | AM1: =IF(VLOOKUP(AF1,Group,7,FALSE)="","",VLOOKUP(AF1,Group,7,FALSE)) ->  | AO1: X
B2: Regular Grouts | E2: Size | I2: Description | S2: =IF(Suggested="Yes",AA2,AG2) -> 0.05 | T2: EA | U2: =+Instructions!$B$3 -> I | W2: =+Instructions!$C$22 -> 0 | X2: 0.05 | Z2: new | AA2: 0.05 | AB2: 0 | AC2: 0.05 | AD2: 0 | AF2: 2 | AG2: 0.05 | AJ2: 0.05 | AK2: 0 | AL2: 0 | AO2: X
B3: Epoxy Grouts | E3: Size | I3: Description | S3: 0.05 | T3: EA | U3: =+Instructions!$B$3 -> I | W3: =+Instructions!$C$22 -> 0 | X3: 0.05 | Z3: new | AA3: 0.05 | AB3: 0 | AC3: 0.05 | AD3: 0 | AF3: 3 | AG3: 0.05 | AJ3: 0.05 | AK3: 0 | AL3: 0 | AO3: X
B4: Additives | E4: Size | I4: Description | S4: 0.05 | T4: EA | U4: =+Instructions!$B$3 -> I | W4: =+Instructions!$C$22 -> 0 | X4: 0.05 | Z4: new | AA4: 0.05 | AB4: 0 | AC4: 0.05 | AD4: 0 | AF4: 4 | AG4: 0.05 | AJ4: 0.05 | AK4: 0 | AL4: 0 | AO4: X
B5: Membranes | E5: Size | I5: Description | S5: 0.05 | T5: EA | U5: =+Instructions!$B$3 -> I | W5: =+Instructions!$C$22 -> 0 | X5: 0.05 | Z5: new | AA5: 0.05 | AB5: 0 | AC5: 0.05 | AD5: 0 | AF5: 5 | AG5: 0.05 | AJ5: 0.05 | AK5: 0 | AL5: 0 | AO5: X
B6: Underlayment | E6: Size | I6: Description | S6: 0.05 | T6: EA | U6: =+Instructions!$B$3 -> I | W6: =+Instructions!$C$22 -> 0 | X6: 0.05 | Z6: new | AA6: 0.05 | AB6: 0 | AC6: 0.05 | AD6: 0 | AF6: 6 | AG6: 0.05 | AJ6: 0.05 | AK6: 0 | AL6: 0 | AO6: X
B7: Care & Maint. | E7: Size | I7: Description | S7: =IF(Suggested="Yes",AA7,AG7) -> 0.05 | T7: EA | U7: =+Instructions!$B$3 -> I | W7: =+Instructions!$C$22 -> 0 | X7: =ROUND($AA7*(1-W7)+0.004999,2) -> 0.05 | Z7: new | AA7: 0.05 | AB7: =+W7 -> 0 | AC7: =+X7 -> 0.05 | AD7: =(AG7-AC7)/AG7 -> 0 | AF7: 7 | AG7: =SUM(AJ7:AL7)+AE7 -> 0.05 | AJ7: =ROUND(AC7/(1-VLOOKUP(AF7,Group,2,FALSE)),2) -> 0.05 | AK7: =IF(VLOOKUP(AF7,Group,5,FALSE)="YES",VLOOKUP(ROUND(ROUND(AJ7,1)-AJ7,2),Round,2,FALSE)+VLOOKUP(AF7,Group,6,FALSE),0) -> 0 | AL7: =IF(VLOOKUP(AF7,Group,7,FALSE)="",0,ROUND(AJ7-0.04999,1)-AJ7+AM7) -> 0 | AM7: =IF(VLOOKUP(AF7,Group,7,FALSE)="","",VLOOKUP(AF7,Group,7,FALSE)) ->  | AO7: X
B8: Other Items | E8: Size | I8: Description | S8: 0.05 | T8: EA | U8: =+Instructions!$B$3 -> I | W8: =+Instructions!$C$22 -> 0 | X8: 0.05 | Z8: new | AA8: 0.05 | AB8: 0 | AC8: 0.05 | AD8: 0 | AF8: 8 | AG8: 0.05 | AJ8: 0.05 | AK8: 0 | AL8: 0 | AO8: X
B9: Format | Q9: Stock | R9: a | S9: 1000 | T9: ABC | W9: 0.1 | X9: 1000 | Z9: ABC | AA9: 1000 | AB9: 0.1 | AC9: 1000 | AD9: 0.1 | AE9: 10 | AG9: 1000 | AO9: X
AO10: X
O11: Price List | W11: Cust. Cost | Z11: Customer Cost Calculation | AO11: X
D12: Sizes & Shapes | O12: Full Carton | Q12: Stock | R12: Note | S12: =IF(Suggested="Yes",AA12,AG12) -> List Price | T12: U/M | U12: Code | W12: Disc. | X12: Net | Z12: Chg | AA12: List Price | AB12: Disc | AC12: Act. Cost | AD12: GP% | AE12: Adj. | AF12: Group | AG12: Price | AJ12: Calc Price | AK12: .05 Round | AL12: Cents | AM12: Round to | AO12: X
AO13: X
O14: ="File '"&Instructions!B2&"' - "&Instructions!B1 -> File 'L' - Laticrete | W14: Cost | AG14: Retail Price Calculations | AO14: X
T15: =+Instructions!B4 -> 6/1/25 (Updated) | AE15: =TODAY() -> 2026-01-26 | AO15: X
N16: =IF(Instructions!C8="","",+Instructions!C8) ->  | AO16: X
C17: ="Product Code '"&Instructions!B3&"'" -> Product Code 'I' | AG17: =IF(Instructions!$C$8="","",Instructions!$C$8) ->  | AO17: X
AO18: X
C19: Sizes & Shapes | O19: Full Carton | Q19: Stock | R19: Note | S19: =+S$12 -> List Price | T19: U/M | U19: =+U$12 -> Code | W19: Disc. | X19: Net | Z19: Chg | AA19: List Price | AB19: =+AB$12 -> Disc | AC19: Act. Cost | AD19: GP% | AE19: Adj. | AF19: =+AF$12 -> Group | AG19: Price | AJ19: Calc Price | AK19: .05 Round | AL19: Cents | AM19: Round to | AO19: X
C20: ALL ITEMS MARKED WITH PACKAGING QUANTITY ARE SOLD IN MULTIPLES OF THAT QUANTITY ONLY | AO20: X
AO21: X
C22: MORTARS & ADHESIVES | AO22: X
D24: MASTICS | R24: Item # Lookup: | S24: LT0015 | AO24: X
D26: 15 Premium Mastic | AO26: X
B28: Mortars/Ahesive | E28: 1 Gallon | Q28: Stock | S28: =IF(Suggested="Yes",AA28,AG28) -> 46.5 | T28: EA | U28: =+Instructions!$B$3 -> I | W28: =+Instructions!$C$22 -> 0 | X28: =ROUND($AA28*(1-W28)+0.004999,2) -> 46.5 | AA28: 46.5 | AB28: =+W28 -> 0 | AC28: =+X28 -> 46.5 | AD28: =(AG28-AC28)/AG28 -> 0 | AF28: 1 | AG28: =SUM(AJ28:AL28)+AE28 -> 46.5 | AJ28: =ROUND(AC28/(1-VLOOKUP(AF28,Group,2,FALSE)),2) -> 46.5 | AK28: =IF(VLOOKUP(AF28,Group,5,FALSE)="YES",VLOOKUP(ROUND(ROUND(AJ28,1)-AJ28,2),Round,2,FALSE)+VLOOKUP(AF28,Group,6,FALSE),0) -> 0 | AL28: =IF(VLOOKUP(AF28,Group,7,FALSE)="",0,ROUND(AJ28-0.04999,1)-AJ28+AM28) -> 0 | AM28: =IF(VLOOKUP(AF28,Group,7,FALSE)="","",VLOOKUP(AF28,Group,7,FALSE)) ->  | AO28: X
B29: Mortars/Ahesive | E29: 3-1/2 Gallon | G29: Pail | Q29: Stock | S29: =IF(Suggested="Yes",AA29,AG29) -> 111.9 | T29: EA | U29: =+Instructions!$B$3 -> I | W29: =+Instructions!$C$22 -> 0 | X29: =ROUND($AA29*(1-W29)+0.004999,2) -> 111.9 | AA29: 111.9 | AB29: =+W29 -> 0 | AC29: =+X29 -> 111.9 | AD29: =(AG29-AC29)/AG29 -> 0 | AF29: 1 | AG29: =SUM(AJ29:AL29)+AE29 -> 111.9 | AJ29: =ROUND(AC29/(1-VLOOKUP(AF29,Group,2,FALSE)),2) -> 111.9 | AK29: =IF(VLOOKUP(AF29,Group,5,FALSE)="YES",VLOOKUP(ROUND(ROUND(AJ29,1)-AJ29,2),Round,2,FALSE)+VLOOKUP(AF29,Group,6,FALSE),0) -> 0 | AL29: =IF(VLOOKUP(AF29,Group,7,FALSE)="",0,ROUND(AJ29-0.04999,1)-AJ29+AM29) -> 0 | AM29: =IF(VLOOKUP(AF29,Group,7,FALSE)="","",VLOOKUP(AF29,Group,7,FALSE)) ->  | AO29: X
AO30: X
D31: Notes: | E31: A premixed, white, water-resistant premium latex adhesive for use on both floor and wall tile installations. | AO31: X
AO32: X
G33: Approximate Coverage per Gallon | AO33: X
G34: NOTCH TROWEL | L34: COVERAGE | AO34: X
G35: 1/8" V-Notch | L35: 50-60 sq ft | AO35: X
G36: 3/16" V-Notch | L36: 30 sq ft | AO36: X
G37: 1/4" x 1/4" Square | L37: 20 sq ft | AO37: X
D39: MORTARS | R39: Item # Lookup: | S39: LT0209G60LB | AO39: X
D41: 209 Floor Mud | AO41: X
B43: Mortars/Ahesive | E43: 60 lb | G43: Bag | I43: Grey | Q43: Stock | S43: =IF(Suggested="Yes",AA43,AG43) -> 32.7 | T43: EA | U43: =+Instructions!$B$3 -> I | W43: =+Instructions!$C$22 -> 0 | X43: =ROUND($AA43*(1-W43)+0.004999,2) -> 32.7 | AA43: 32.7 | AB43: =+W43 -> 0 | AC43: =+X43 -> 32.7 | AD43: =(AG43-AC43)/AG43 -> 0 | AF43: 1 | AG43: =SUM(AJ43:AL43)+AE43 -> 32.7 | AJ43: =ROUND(AC43/(1-VLOOKUP(AF43,Group,2,FALSE)),2) -> 32.7 | AK43: =IF(VLOOKUP(AF43,Group,5,FALSE)="YES",VLOOKUP(ROUND(ROUND(AJ43,1)-AJ43,2),Round,2,FALSE)+VLOOKUP(AF43,Group,6,FALSE),0) -> 0 | AL43: =IF(VLOOKUP(AF43,Group,7,FALSE)="",0,ROUND(AJ43-0.04999,1)-AJ43+AM43) -> 0 | AM43: =IF(VLOOKUP(AF43,Group,7,FALSE)="","",VLOOKUP(AF43,Group,7,FALSE)) ->  | AO43: X
AO44: X
D45: Notes: | E45: Pre-mixed, economical alternative to Laticrete 226 Thick-Bed Mortar, Laticrete 209 Floor Mud mixes with Laticrete 3701 Mortar Admix to | AO45: X
E46: provide a conventional floor mortar bed. Suitable for interior applications such as small shower pan fills in bathrooms. Approximate | AO46: X
E47: Coverage: 6 SF at 1" thick per 60 lb. Bag. | AO47: X
A49: x | D49: 226 Thick Bed Mortar | R49: Item # Lookup: | S49: LT0226G60LB | AO49: X
B51: Mortars/Ahesive | E51: 60 lb | G51: Bag | I51: Grey | Q51: Stock | S51: =IF(Suggested="Yes",AA51,AG51) -> 38.4 | T51: EA | U51: =+Instructions!$B$3 -> I | W51: =+Instructions!$C$22 -> 0 | X51: =ROUND($AA51*(1-W51)+0.004999,2) -> 38.4 | AA51: 38.4 | AB51: =+W51 -> 0 | AC51: =+X51 -> 38.4 | AD51: =(AG51-AC51)/AG51 -> 0 | AF51: 1 | AG51: =SUM(AJ51:AL51)+AE51 -> 38.4 | AJ51: =ROUND(AC51/(1-VLOOKUP(AF51,Group,2,FALSE)),2) -> 38.4 | AK51: =IF(VLOOKUP(AF51,Group,5,FALSE)="YES",VLOOKUP(ROUND(ROUND(AJ51,1)-AJ51,2),Round,2,FALSE)+VLOOKUP(AF51,Group,6,FALSE),0) -> 0 | AL51: =IF(VLOOKUP(AF51,Group,7,FALSE)="",0,ROUND(AJ51-0.04999,1)-AJ51+AM51) -> 0 | AM51: =IF(VLOOKUP(AF51,Group,7,FALSE)="","",VLOOKUP(AF51,Group,7,FALSE)) ->  | AO51: X
AO52: X
D53: Notes: | E53: Designed for use with Laticrete 3701 Mortar Admix to produce a latex portland cement mortar that has exceptional strength. Approximate | AO53: X
E54: Coverage: 45 SF at 1" thick per 1 x 5 gallon pail of 3701 admix & 7 x 60 bags of 226 mortar. | AO54: X
A56: x | D56: 229 Quick Cure Mortar Bed | R56: Item # Lookup: | S56: LT022960LB | AO56: X
B58: Mortars/Ahesive | E58: 60 lb | G58: Bag | I58: Grey | S58: =IF(Suggested="Yes",AA58,AG58) -> 65.6 | T58: EA | U58: =+Instructions!$B$3 -> I | W58: =+Instructions!$C$22 -> 0 | X58: =ROUND($AA58*(1-W58)+0.004999,2) -> 65.6 | AA58: 65.6 | AB58: =+W58 -> 0 | AC58: =+X58 -> 65.6 | AD58: =(AG58-AC58)/AG58 -> 0 | AF58: 1 | AG58: =SUM(AJ58:AL58)+AE58 -> 65.6 | AJ58: =ROUND(AC58/(1-VLOOKUP(AF58,Group,2,FALSE)),2) -> 65.6 | AK58: =IF(VLOOKUP(AF58,Group,5,FALSE)="YES",VLOOKUP(ROUND(ROUND(AJ58,1)-AJ58,2),Round,2,FALSE)+VLOOKUP(AF58,Group,6,FALSE),0) -> 0 | AL58: =IF(VLOOKUP(AF58,Group,7,FALSE)="",0,ROUND(AJ58-0.04999,1)-AJ58+AM58) -> 0 | AM58: =IF(VLOOKUP(AF58,Group,7,FALSE)="","",VLOOKUP(AF58,Group,7,FALSE)) ->  | AO58: X
AO59: X
D60: Notes: | E60: Quick Cure Mortar Bed is a rapid setting, polymer fortified, blend of carefully selected polymers, portland cement and graded aggregates. | AO60: X
E61: Quick Cure Mortar Bed does not require the use of latex admix, you only need to add water to produce thick bed mortar. It allows for foot | AO61: X
E62: traffic and walkability in as soon as 30 minutes for tile and shower system installs. Quick Cure Mortar Bed is versatile for use for both interior | AO62: X
E63: and exterior applications, wet or dry applications, bonded and non-bonded thick bed mortar applications and shower systems. | AO63: X
AO64: X
G65: Approximate Coverage per 60 lb Bag | AO65: X
G66: THICKNESS | L66: COVERAGE | AO66: X
G67: 1/2" | L67: 14 sq ft | AO67: X
G68: 1" | L68: 7 sq ft | AO68: X
G69: 2" | L69: 3.5 sq ft | AO69: X
A71: x | D71: 3701 Fortified Mortar Bed | R71: Item # Lookup: | S71: LT370160LB | AO71: X
B73: Mortars/Ahesive | E73: 60 lb | G73: Bag | I73: Grey | Q73: Stock | S73: =IF(Suggested="Yes",AA73,AG73) -> 81.3 | T73: EA | U73: =+Instructions!$B$3 -> I | W73: =+Instructions!$C$22 -> 0 | X73: =ROUND($AA73*(1-W73)+0.004999,2) -> 81.3 | AA73: 81.3 | AB73: =+W73 -> 0 | AC73: =+X73 -> 81.3 | AD73: =(AG73-AC73)/AG73 -> 0 | AF73: 1 | AG73: =SUM(AJ73:AL73)+AE73 -> 81.3 | AJ73: =ROUND(AC73/(1-VLOOKUP(AF73,Group,2,FALSE)),2) -> 81.3 | AK73: =IF(VLOOKUP(AF73,Group,5,FALSE)="YES",VLOOKUP(ROUND(ROUND(AJ73,1)-AJ73,2),Round,2,FALSE)+VLOOKUP(AF73,Group,6,FALSE),0) -> 0 | AL73: =IF(VLOOKUP(AF73,Group,7,FALSE)="",0,ROUND(AJ73-0.04999,1)-AJ73+AM73) -> 0 | AM73: =IF(VLOOKUP(AF73,Group,7,FALSE)="","",VLOOKUP(AF73,Group,7,FALSE)) ->  | AO73: X
AO74: X
D75: Notes: | E75: A polymer fortified blend of carefully selected polymers, portland cement and graded aggregates. Does not require the use of latex admix, | AO75: X
E76: you only need to add water to produce thick bed mortar with exceptional strength. | AO76: X
AO77: X
G78: Approximate Coverage per 60 lb Bag | AO78: X
G79: THICKNESS | L79: COVERAGE | AO79: X
G80: 1/2" | L80: 12 sq ft | AO80: X
G81: 1" | L81: 6 sq ft | AO81: X
G82: 2" | L82: 3 sq ft | AO82: X
A84: x | D84: 3701 Lite Mortar | R84: Item # Lookup: | S84: LT370130LB | AO84: X
B86: Mortars/Ahesive | E86: 30 lb | G86: Bag | I86: Grey | S86: =IF(Suggested="Yes",AA86,AG86) -> 68.2 | T86: EA | U86: =+Instructions!$B$3 -> I | W86: =+Instructions!$C$22 -> 0 | X86: =ROUND($AA86*(1-W86)+0.004999,2) -> 68.2 | AA86: 68.2 | AB86: =+W86 -> 0 | AC86: =+X86 -> 68.2 | AD86: =(AG86-AC86)/AG86 -> 0 | AF86: 1 | AG86: =SUM(AJ86:AL86)+AE86 -> 68.2 | AJ86: =ROUND(AC86/(1-VLOOKUP(AF86,Group,2,FALSE)),2) -> 68.2 | AK86: =IF(VLOOKUP(AF86,Group,5,FALSE)="YES",VLOOKUP(ROUND(ROUND(AJ86,1)-AJ86,2),Round,2,FALSE)+VLOOKUP(AF86,Group,6,FALSE),0) -> 0 | AL86: =IF(VLOOKUP(AF86,Group,7,FALSE)="",0,ROUND(AJ86-0.04999,1)-AJ86+AM86) -> 0 | AM86: =IF(VLOOKUP(AF86,Group,7,FALSE)="","",VLOOKUP(AF86,Group,7,FALSE)) ->  | AO86: X
AO87: X
D88: Notes: | E88: 3701 Lite Mortar contains carefully selected polymers, portland cement and light weight aggregates. 3701 Lite Mortar contains no silica sand | AO88: X
E89: and does not require the use of latex admix. You will only need to add water to produce thick bed mortar or a vertical repair mortar/screed. | AO89: X
E90: 3701 Lite Mortar weighs half the amount of a conventional thick bed mortar and is easy to mix / apply. | AO90: X
AO91: X
G92: Approximate Coverage per 30 lb Bag | AO92: X
G93: Render/Repair | J93: Mortar Bed | M93: Depth | AO93: X
G94: 12 sq ft | J94: 10 sq ft | M94: 1/2" | AO94: X
G95: 6 sq ft | J95: 5 sq ft | M95: 1" | AO95: X
G96: 4 sq ft | J96: 3 sq ft | M96: 1-1/2" | AO96: X
G97: 3 sq ft | J97: 2 sq ft | M97: 2" | AO97: X
A99: x | D99: 3701 Lite Mortar R | R99: Item # Lookup: | S99: LT3701R30LB | AO99: X
B101: Mortars/Ahesive | E101: 30 lb | G101: Bag | I101: Grey | S101: =IF(Suggested="Yes",AA101,AG101) -> 81.3 | T101: EA | U101: =+Instructions!$B$3 -> I | W101: =+Instructions!$C$22 -> 0 | X101: =ROUND($AA101*(1-W101)+0.004999,2) -> 81.3 | AA101: 81.3 | AB101: =+W101 -> 0 | AC101: =+X101 -> 81.3 | AD101: =(AG101-AC101)/AG101 -> 0 | AF101: 1 | AG101: =SUM(AJ101:AL101)+AE101 -> 81.3 | AJ101: =ROUND(AC101/(1-VLOOKUP(AF101,Group,2,FALSE)),2) -> 81.3 | AK101: =IF(VLOOKUP(AF101,Group,5,FALSE)="YES",VLOOKUP(ROUND(ROUND(AJ101,1)-AJ101,2),Round,2,FALSE)+VLOOKUP(AF101,Group,6,FALSE),0) -> 0 | AL101: =IF(VLOOKUP(AF101,Group,7,FALSE)="",0,ROUND(AJ101-0.04999,1)-AJ101+AM101) -> 0 | AM101: =IF(VLOOKUP(AF101,Group,7,FALSE)="","",VLOOKUP(AF101,Group,7,FALSE)) ->  | AO101: X
AO102: X
D103: Notes: | E103: 3701 Lite Mortar R contains carefully selected polymers, portland cement and light weight aggregates. This Rapid mortar can be used in a | AO103: X
E104: large amount of projects, decreasing the wait time significantly. 3701 Lite Mortar R contains no silica sand and does not require the use of | AO104: X
E105: latex admix. You will only need to add water to produce thick bed mortar or a vertical repair mortar/screed. 3701 Lite Mortar R weighs | AO105: X
E106: half the amount of a conventional thick bed mortar and is easy to mix / apply. | AO106: X
AO107: X
C108: continued on next page | AO108: X
A109: x | D109: 3701 Lite Mortar R - continued | R109: Item # Lookup: | S109: LT3701R30LB | AO109: X
AO110: X
G111: Approximate Coverage per 30 lb Bag | AO111: X
G112: Render/Repair | J112: Mortar Bed | M112: Depth | AO112: X
G113: 12 sq ft | J113: 10 sq ft | M113: 1/2" | AO113: X
G114: 6 sq ft | J114: 5 sq ft | M114: 1" | AO114: X
G115: 4 sq ft | J115: 3 sq ft | M115: 1-1/2" | AO115: X
G116: 3 sq ft | J116: 2 sq ft | M116: 2" | AO116: X
D118: THIN-SET MORTARS - Non-Modified | AO118: X
D120: 272 Premium Floor & Wall | R120: Item # Lookup: | S120: LT0272 | AO120: X
B122: Mortars/Ahesive | E122: 50 lb | G122: Bag | I122: White | Q122: Stock | S122: =IF(Suggested="Yes",AA122,AG122) -> 56.3 | T122: EA | U122: =+Instructions!$B$3 -> I | W122: =+Instructions!$C$22 -> 0 | X122: =ROUND($AA122*(1-W122)+0.004999,2) -> 56.3 | AA122: 56.3 | AB122: =+W122 -> 0 | AC122: =+X122 -> 56.3 | AD122: =(AG122-AC122)/AG122 -> 0 | AF122: 1 | AG122: =SUM(AJ122:AL122)+AE122 -> 56.3 | AJ122: =ROUND(AC122/(1-VLOOKUP(AF122,Group,2,FALSE)),2) -> 56.3 | AK122: =IF(VLOOKUP(AF122,Group,5,FALSE)="YES",VLOOKUP(ROUND(ROUND(AJ122,1)-AJ122,2),Round,2,FALSE)+VLOOKUP(AF122,Group,6,FALSE),0) -> 0 | AL122: =IF(VLOOKUP(AF122,Group,7,FALSE)="",0,ROUND(AJ122-0.04999,1)-AJ122+AM122) -> 0 | AM122: =IF(VLOOKUP(AF122,Group,7,FALSE)="","",VLOOKUP(AF122,Group,7,FALSE)) ->  | AO122: X
AO123: X
D124: Notes: | E124: A premium thin-set mortar that can be used for interior use on both floors & walls. Ideal for use over masonry, concrete, cement backer | AO124: X
E125: board, mortar beds & gypsum wallboard*. Mix with Laticrete 333 Super Flexible Additive for increased performance or Laticrete 3701 Mortar | AO125: X
E126: Admix for exterior use. (* interiors only) | AO126: X
AO127: X
G128: Approximate Coverage per 50 lb Bag | AO128: X
G129: NOTCH TROWEL | L129: COVERAGE | AO129: X
G130: 1/4" x 1/4" | L130: 75-90 sq ft | AO130: X
G131: 1/4" x 3/8" | L131: 55-65 sq ft | AO131: X
D133: 317 Floor & Wall | R133: Item # Lookup: | S133: LT0317 | AO133: X
B135: Mortars/Ahesive | E135: 50 lb | G135: Bag | I135: Grey | Q135: Stock | S135: =IF(Suggested="Yes",AA135,AG135) -> 29.05 | T135: EA | U135: =+Instructions!$B$3 -> I | W135: =+Instructions!$C$22 -> 0 | X135: =ROUND($AA135*(1-W135)+0.004999,2) -> 29.05 | AA135: 29.05 | AB135: =+W135 -> 0 | AC135: =+X135 -> 29.05 | AD135: =(AG135-AC135)/AG135 -> 0 | AF135: 1 | AG135: =SUM(AJ135:AL135)+AE135 -> 29.05 | AJ135: =ROUND(AC135/(1-VLOOKUP(AF135,Group,2,FALSE)),2) -> 29.05 | AK135: =IF(VLOOKUP(AF135,Group,5,FALSE)="YES",VLOOKUP(ROUND(ROUND(AJ135,1)-AJ135,2),Round,2,FALSE)+VLOOKUP(AF135,Group,6,FALSE),0) -> 0 | AL135: =IF(VLOOKUP(AF135,Group,7,FALSE)="",0,ROUND(AJ135-0.04999,1)-AJ135+AM135) -> 0 | AM135: =IF(VLOOKUP(AF135,Group,7,FALSE)="","",VLOOKUP(AF135,Group,7,FALSE)) ->  | AO135: X
B136: Mortars/Ahesive | E136: 50 lb | G136: Bag | I136: White | Q136: Stock | S136: =IF(Suggested="Yes",AA136,AG136) -> 38.1 | T136: EA | U136: =+Instructions!$B$3 -> I | W136: =+Instructions!$C$22 -> 0 | X136: =ROUND($AA136*(1-W136)+0.004999,2) -> 38.1 | AA136: 38.1 | AB136: =+W136 -> 0 | AC136: =+X136 -> 38.1 | AD136: =(AG136-AC136)/AG136 -> 0 | AF136: 1 | AG136: =SUM(AJ136:AL136)+AE136 -> 38.1 | AJ136: =ROUND(AC136/(1-VLOOKUP(AF136,Group,2,FALSE)),2) -> 38.1 | AK136: =IF(VLOOKUP(AF136,Group,5,FALSE)="YES",VLOOKUP(ROUND(ROUND(AJ136,1)-AJ136,2),Round,2,FALSE)+VLOOKUP(AF136,Group,6,FALSE),0) -> 0 | AL136: =IF(VLOOKUP(AF136,Group,7,FALSE)="",0,ROUND(AJ136-0.04999,1)-AJ136+AM136) -> 0 | AM136: =IF(VLOOKUP(AF136,Group,7,FALSE)="","",VLOOKUP(AF136,Group,7,FALSE)) ->  | AO136: X
AO137: X
D138: Notes: | E138: This smooth & creamy, sanded thin-set mortar can be used for interior or exterior applications on floors & walls over masonry, concrete, | AO138: X
E139: cement backer board, mortar beds & gypsum wallboard*. Mix with Laticrete 333 Super Flexible Additive for increased performance or | AO139: X
E140: Laticrete 3701 Mortar Admix for exterior use. (* interiors only) | AO140: X
AO141: X
G142: Approximate Coverage per 50 lb Bag | AO142: X
G143: NOTCH TROWEL | L143: COVERAGE | AO143: X
G144: 1/4" x 1/4" | L144: 75-90 sq ft | AO144: X
G145: 1/4" x 3/8" | L145: 55-65 sq ft | AO145: X
AO146: X
D147: THIN-SET MORTARS - Polymer Fortified | AO147: X
D149: 252 Silver | R149: Item # Lookup: | S149: LT0252 | AO149: X
B151: Mortars/Ahesive | E151: 50 lb | G151: Bag | I151: Grey | S151: =IF(Suggested="Yes",AA151,AG151) -> 35.4 | T151: EA | U151: =+Instructions!$B$3 -> I | W151: =+Instructions!$C$22 -> 0 | X151: =ROUND($AA151*(1-W151)+0.004999,2) -> 35.4 | AA151: 35.4 | AB151: =+W151 -> 0 | AC151: =+X151 -> 35.4 | AD151: =(AG151-AC151)/AG151 -> 0 | AF151: 1 | AG151: =SUM(AJ151:AL151)+AE151 -> 35.4 | AJ151: =ROUND(AC151/(1-VLOOKUP(AF151,Group,2,FALSE)),2) -> 35.4 | AK151: =IF(VLOOKUP(AF151,Group,5,FALSE)="YES",VLOOKUP(ROUND(ROUND(AJ151,1)-AJ151,2),Round,2,FALSE)+VLOOKUP(AF151,Group,6,FALSE),0) -> 0 | AL151: =IF(VLOOKUP(AF151,Group,7,FALSE)="",0,ROUND(AJ151-0.04999,1)-AJ151+AM151) -> 0 | AM151: =IF(VLOOKUP(AF151,Group,7,FALSE)="","",VLOOKUP(AF151,Group,7,FALSE)) ->  | AO151: X
B152: Mortars/Ahesive | E152: 50 lb | G152: Bag | I152: White | S152: =IF(Suggested="Yes",AA152,AG152) -> 37.95 | T152: EA | U152: =+Instructions!$B$3 -> I | W152: =+Instructions!$C$22 -> 0 | X152: =ROUND($AA152*(1-W152)+0.004999,2) -> 37.95 | AA152: 37.95 | AB152: =+W152 -> 0 | AC152: =+X152 -> 37.95 | AD152: =(AG152-AC152)/AG152 -> 0 | AF152: 1 | AG152: =SUM(AJ152:AL152)+AE152 -> 37.95 | AJ152: =ROUND(AC152/(1-VLOOKUP(AF152,Group,2,FALSE)),2) -> 37.95 | AK152: =IF(VLOOKUP(AF152,Group,5,FALSE)="YES",VLOOKUP(ROUND(ROUND(AJ152,1)-AJ152,2),Round,2,FALSE)+VLOOKUP(AF152,Group,6,FALSE),0) -> 0 | AL152: =IF(VLOOKUP(AF152,Group,7,FALSE)="",0,ROUND(AJ152-0.04999,1)-AJ152+AM152) -> 0 | AM152: =IF(VLOOKUP(AF152,Group,7,FALSE)="","",VLOOKUP(AF152,Group,7,FALSE)) ->  | AO152: X
AO153: X
D154: Notes: | E154: For economical interior & exterior installations. Designed to be mixed with water for a strong bond. | AO154: X
AO155: X
G156: Approximate Coverage per 50 lb Bag | AO156: X
G157: NOTCH TROWEL | L157: COVERAGE | AO157: X
G158: 1/4" x 1/4" | L158: 80-95 sq ft | AO158: X
G159: 1/4" x 3/8" | L159: 60-70 sq ft | AO159: X
AO160: X
D161: 253 Gold | R161: Item # Lookup: | S161: LT0253 | AO161: X
B163: Mortars/Ahesive | E163: 50 lb | G163: Bag | I163: Grey | Q163: Stock | S163: =IF(Suggested="Yes",AA163,AG163) -> 43.65 | T163: EA | U163: =+Instructions!$B$3 -> I | W163: =+Instructions!$C$22 -> 0 | X163: =ROUND($AA163*(1-W163)+0.004999,2) -> 43.65 | AA163: 43.65 | AB163: =+W163 -> 0 | AC163: =+X163 -> 43.65 | AD163: =(AG163-AC163)/AG163 -> 0 | AF163: 1 | AG163: =SUM(AJ163:AL163)+AE163 -> 43.65 | AJ163: =ROUND(AC163/(1-VLOOKUP(AF163,Group,2,FALSE)),2) -> 43.65 | AK163: =IF(VLOOKUP(AF163,Group,5,FALSE)="YES",VLOOKUP(ROUND(ROUND(AJ163,1)-AJ163,2),Round,2,FALSE)+VLOOKUP(AF163,Group,6,FALSE),0) -> 0 | AL163: =IF(VLOOKUP(AF163,Group,7,FALSE)="",0,ROUND(AJ163-0.04999,1)-AJ163+AM163) -> 0 | AM163: =IF(VLOOKUP(AF163,Group,7,FALSE)="","",VLOOKUP(AF163,Group,7,FALSE)) ->  | AO163: X
B164: Mortars/Ahesive | E164: 50 lb | G164: Bag | I164: White | Q164: Stock | S164: =IF(Suggested="Yes",AA164,AG164) -> 51.05 | T164: EA | U164: =+Instructions!$B$3 -> I | W164: =+Instructions!$C$22 -> 0 | X164: =ROUND($AA164*(1-W164)+0.004999,2) -> 51.05 | AA164: 51.05 | AB164: =+W164 -> 0 | AC164: =+X164 -> 51.05 | AD164: =(AG164-AC164)/AG164 -> 0 | AF164: 1 | AG164: =SUM(AJ164:AL164)+AE164 -> 51.05 | AJ164: =ROUND(AC164/(1-VLOOKUP(AF164,Group,2,FALSE)),2) -> 51.05 | AK164: =IF(VLOOKUP(AF164,Group,5,FALSE)="YES",VLOOKUP(ROUND(ROUND(AJ164,1)-AJ164,2),Round,2,FALSE)+VLOOKUP(AF164,Group,6,FALSE),0) -> 0 | AL164: =IF(VLOOKUP(AF164,Group,7,FALSE)="",0,ROUND(AJ164-0.04999,1)-AJ164+AM164) -> 0 | AM164: =IF(VLOOKUP(AF164,Group,7,FALSE)="","",VLOOKUP(AF164,Group,7,FALSE)) ->  | AO164: X
AO165: X
D166: Notes: | E166: A smooth & creamy multipurpose thin-set mortar designed to be mixed with water for interior & exterior applications of ceramic tile, | AO166: X
E167: porcelain tile, quarry tile, pavers, brick, & stone. Provides a superior bond over exterior glue plywood* as well as concrete, masonry, | AO167: X
E168: gypsum wallboard*, plastic laminate*, non-water soluble cutback adhesive* & vinyl tile*. (* interiors only) | AO168: X
AO169: X
G170: Approximate Coverage per 50 lb Bag | AO170: X
G171: NOTCH TROWEL | L171: COVERAGE | AO171: X
G172: 1/4" x 1/4" | L172: 80-95 sq ft | AO172: X
G173: 1/4" x 3/8" | L173: 60-70 sq ft | AO173: X
A175: x | D175: 253R Gold Rapid | R175: Item # Lookup: | S175: LT0253R | AO175: X
B177: Mortars/Ahesive | E177: 50 lb | G177: Bag | I177: Grey | Q177: Stock | S177: =IF(Suggested="Yes",AA177,AG177) -> 76 | T177: EA | U177: =+Instructions!$B$3 -> I | W177: =+Instructions!$C$22 -> 0 | X177: =ROUND($AA177*(1-W177)+0.004999,2) -> 76 | AA177: 76 | AB177: =+W177 -> 0 | AC177: =+X177 -> 76 | AD177: =(AG177-AC177)/AG177 -> 0 | AF177: 1 | AG177: =SUM(AJ177:AL177)+AE177 -> 76 | AJ177: =ROUND(AC177/(1-VLOOKUP(AF177,Group,2,FALSE)),2) -> 76 | AK177: =IF(VLOOKUP(AF177,Group,5,FALSE)="YES",VLOOKUP(ROUND(ROUND(AJ177,1)-AJ177,2),Round,2,FALSE)+VLOOKUP(AF177,Group,6,FALSE),0) -> 0 | AL177: =IF(VLOOKUP(AF177,Group,7,FALSE)="",0,ROUND(AJ177-0.04999,1)-AJ177+AM177) -> 0 | AM177: =IF(VLOOKUP(AF177,Group,7,FALSE)="","",VLOOKUP(AF177,Group,7,FALSE)) ->  | AO177: X
B178: Mortars/Ahesive | E178: 50 lb | G178: Bag | I178: White | Q178: Stock | S178: =IF(Suggested="Yes",AA178,AG178) -> 87.4 | T178: EA | U178: =+Instructions!$B$3 -> I | W178: =+Instructions!$C$22 -> 0 | X178: =ROUND($AA178*(1-W178)+0.004999,2) -> 87.4 | AA178: 87.4 | AB178: =+W178 -> 0 | AC178: =+X178 -> 87.4 | AD178: =(AG178-AC178)/AG178 -> 0 | AF178: 1 | AG178: =SUM(AJ178:AL178)+AE178 -> 87.4 | AJ178: =ROUND(AC178/(1-VLOOKUP(AF178,Group,2,FALSE)),2) -> 87.4 | AK178: =IF(VLOOKUP(AF178,Group,5,FALSE)="YES",VLOOKUP(ROUND(ROUND(AJ178,1)-AJ178,2),Round,2,FALSE)+VLOOKUP(AF178,Group,6,FALSE),0) -> 0 | AL178: =IF(VLOOKUP(AF178,Group,7,FALSE)="",0,ROUND(AJ178-0.04999,1)-AJ178+AM178) -> 0 | AM178: =IF(VLOOKUP(AF178,Group,7,FALSE)="","",VLOOKUP(AF178,Group,7,FALSE)) ->  | AO178: X
AO179: X
D180: Notes: | E180: Set & then grout ceramic tile, porcelain, pavers, brick & stone in just 2-4 hours with this fast-setting, polymer fortified multipurpose thin-set | AO180: X
E181: mortar. Just mix with water for a superior bond to concrete, masonry & exterior glue plywood*. (* interiors only) | AO181: X
AO182: X
D183: 254 Platinum | R183: Item # Lookup: | S183: LT0254 | AO183: X
B185: Mortars/Ahesive | E185: 50 lb | G185: Bag | I185: Grey | Q185: Stock | S185: =IF(Suggested="Yes",AA185,AG185) -> 107.65 | T185: EA | U185: =+Instructions!$B$3 -> I | W185: =+Instructions!$C$22 -> 0 | X185: =ROUND($AA185*(1-W185)+0.004999,2) -> 107.65 | AA185: 107.65 | AB185: =+W185 -> 0 | AC185: =+X185 -> 107.65 | AD185: =(AG185-AC185)/AG185 -> 0 | AF185: 1 | AG185: =SUM(AJ185:AL185)+AE185 -> 107.65 | AJ185: =ROUND(AC185/(1-VLOOKUP(AF185,Group,2,FALSE)),2) -> 107.65 | AK185: =IF(VLOOKUP(AF185,Group,5,FALSE)="YES",VLOOKUP(ROUND(ROUND(AJ185,1)-AJ185,2),Round,2,FALSE)+VLOOKUP(AF185,Group,6,FALSE),0) -> 0 | AL185: =IF(VLOOKUP(AF185,Group,7,FALSE)="",0,ROUND(AJ185-0.04999,1)-AJ185+AM185) -> 0 | AM185: =IF(VLOOKUP(AF185,Group,7,FALSE)="","",VLOOKUP(AF185,Group,7,FALSE)) ->  | AO185: X
B186: Mortars/Ahesive | E186: 50 lb | G186: Bag | I186: White | Q186: Stock | S186: =IF(Suggested="Yes",AA186,AG186) -> 119.15 | T186: EA | U186: =+Instructions!$B$3 -> I | W186: =+Instructions!$C$22 -> 0 | X186: =ROUND($AA186*(1-W186)+0.004999,2) -> 119.15 | AA186: 119.15 | AB186: =+W186 -> 0 | AC186: =+X186 -> 119.15 | AD186: =(AG186-AC186)/AG186 -> 0 | AF186: 1 | AG186: =SUM(AJ186:AL186)+AE186 -> 119.15 | AJ186: =ROUND(AC186/(1-VLOOKUP(AF186,Group,2,FALSE)),2) -> 119.15 | AK186: =IF(VLOOKUP(AF186,Group,5,FALSE)="YES",VLOOKUP(ROUND(ROUND(AJ186,1)-AJ186,2),Round,2,FALSE)+VLOOKUP(AF186,Group,6,FALSE),0) -> 0 | AL186: =IF(VLOOKUP(AF186,Group,7,FALSE)="",0,ROUND(AJ186-0.04999,1)-AJ186+AM186) -> 0 | AM186: =IF(VLOOKUP(AF186,Group,7,FALSE)="","",VLOOKUP(AF186,Group,7,FALSE)) ->  | AO186: X
AO187: X
D188: Notes: | E188: The ultimate one-step, polymer fortified thin-set that provides unsurpassed strength. The exceptional bond strength & easy workability | AO188: X
E189: makes this multipurpose thin-set the ultimate adhesive for difficult to bond porcelain tiles as well as glass mosaics & large format glass tile. | AO189: X
AO190: X
G191: Approximate Coverage per 50 lb Bag | AO191: X
G192: NOTCH TROWEL | L192: COVERAGE | AO192: X
G193: 1/4" x 1/4" | L193: 80-95 sq ft | AO193: X
G194: 1/4" x 3/8" | L194: 60-70 sq ft | AO194: X
G195: 1/2" x 1/2" | L195: 35-40 sq ft | AO195: X
AO196: X
D197: 254R Platinum Rapid | R197: Item # Lookup: | S197: LT0254R | AO197: X
B199: Mortars/Ahesive | E199: 25 lb | G199: Bag | I199: Grey | S199: =IF(Suggested="Yes",AA199,AG199) -> 86.2 | T199: EA | U199: =+Instructions!$B$3 -> I | W199: =+Instructions!$C$22 -> 0 | X199: =ROUND($AA199*(1-W199)+0.004999,2) -> 86.2 | AA199: 86.2 | AB199: =+W199 -> 0 | AC199: =+X199 -> 86.2 | AD199: =(AG199-AC199)/AG199 -> 0 | AF199: 1 | AG199: =SUM(AJ199:AL199)+AE199 -> 86.2 | AJ199: =ROUND(AC199/(1-VLOOKUP(AF199,Group,2,FALSE)),2) -> 86.2 | AK199: =IF(VLOOKUP(AF199,Group,5,FALSE)="YES",VLOOKUP(ROUND(ROUND(AJ199,1)-AJ199,2),Round,2,FALSE)+VLOOKUP(AF199,Group,6,FALSE),0) -> 0 | AL199: =IF(VLOOKUP(AF199,Group,7,FALSE)="",0,ROUND(AJ199-0.04999,1)-AJ199+AM199) -> 0 | AM199: =IF(VLOOKUP(AF199,Group,7,FALSE)="","",VLOOKUP(AF199,Group,7,FALSE)) ->  | AO199: X
B200: Mortars/Ahesive | E200: 25 lb | G200: Bag | I200: White | S200: =IF(Suggested="Yes",AA200,AG200) -> 94.15 | T200: EA | U200: =+Instructions!$B$3 -> I | W200: =+Instructions!$C$22 -> 0 | X200: =ROUND($AA200*(1-W200)+0.004999,2) -> 94.15 | AA200: 94.15 | AB200: =+W200 -> 0 | AC200: =+X200 -> 94.15 | AD200: =(AG200-AC200)/AG200 -> 0 | AF200: 1 | AG200: =SUM(AJ200:AL200)+AE200 -> 94.15 | AJ200: =ROUND(AC200/(1-VLOOKUP(AF200,Group,2,FALSE)),2) -> 94.15 | AK200: =IF(VLOOKUP(AF200,Group,5,FALSE)="YES",VLOOKUP(ROUND(ROUND(AJ200,1)-AJ200,2),Round,2,FALSE)+VLOOKUP(AF200,Group,6,FALSE),0) -> 0 | AL200: =IF(VLOOKUP(AF200,Group,7,FALSE)="",0,ROUND(AJ200-0.04999,1)-AJ200+AM200) -> 0 | AM200: =IF(VLOOKUP(AF200,Group,7,FALSE)="","",VLOOKUP(AF200,Group,7,FALSE)) ->  | AO200: X
AO201: X
D202: Notes: | E202: The ultimate one-step, rapid polymer fortified thin-set that allows for grouting in 2 to 4 hours & is part of the Laticrete 10 Year Systems Warranty. | AO202: X
AO203: X
G204: Approximate Coverage per 25 lb Bag | AO204: X
G205: NOTCH TROWEL | L205: COVERAGE | AO205: X
G206: 1/4" x 1/4" | L206: 40-47 sq ft | AO206: X
G207: 1/4" x 3/8" | L207: 25-30 sq ft | AO207: X
G208: 1/2" x 1/2" | L208: 20-23 sq ft | AO208: X
AO209: X
D210: 254 Platinum Plus | R210: Item # Lookup: | S210: LT0254 | AO210: X
B212: Mortars/Ahesive | E212: 25 lb | G212: Bag | I212: Grey | S212: =IF(Suggested="Yes",AA212,AG212) -> 115.45 | T212: EA | U212: =+Instructions!$B$3 -> I | W212: =+Instructions!$C$22 -> 0 | X212: =ROUND($AA212*(1-W212)+0.004999,2) -> 115.45 | AA212: 115.45 | AB212: =+W212 -> 0 | AC212: =+X212 -> 115.45 | AD212: =(AG212-AC212)/AG212 -> 0 | AF212: 1 | AG212: =SUM(AJ212:AL212)+AE212 -> 115.45 | AJ212: =ROUND(AC212/(1-VLOOKUP(AF212,Group,2,FALSE)),2) -> 115.45 | AK212: =IF(VLOOKUP(AF212,Group,5,FALSE)="YES",VLOOKUP(ROUND(ROUND(AJ212,1)-AJ212,2),Round,2,FALSE)+VLOOKUP(AF212,Group,6,FALSE),0) -> 0 | AL212: =IF(VLOOKUP(AF212,Group,7,FALSE)="",0,ROUND(AJ212-0.04999,1)-AJ212+AM212) -> 0 | AM212: =IF(VLOOKUP(AF212,Group,7,FALSE)="","",VLOOKUP(AF212,Group,7,FALSE)) ->  | AO212: X
B213: Mortars/Ahesive | E213: 25 lb | G213: Bag | I213: White | S213: =IF(Suggested="Yes",AA213,AG213) -> 128.1 | T213: EA | U213: =+Instructions!$B$3 -> I | W213: =+Instructions!$C$22 -> 0 | X213: =ROUND($AA213*(1-W213)+0.004999,2) -> 128.1 | AA213: 128.1 | AB213: =+W213 -> 0 | AC213: =+X213 -> 128.1 | AD213: =(AG213-AC213)/AG213 -> 0 | AF213: 1 | AG213: =SUM(AJ213:AL213)+AE213 -> 128.1 | AJ213: =ROUND(AC213/(1-VLOOKUP(AF213,Group,2,FALSE)),2) -> 128.1 | AK213: =IF(VLOOKUP(AF213,Group,5,FALSE)="YES",VLOOKUP(ROUND(ROUND(AJ213,1)-AJ213,2),Round,2,FALSE)+VLOOKUP(AF213,Group,6,FALSE),0) -> 0 | AL213: =IF(VLOOKUP(AF213,Group,7,FALSE)="",0,ROUND(AJ213-0.04999,1)-AJ213+AM213) -> 0 | AM213: =IF(VLOOKUP(AF213,Group,7,FALSE)="","",VLOOKUP(AF213,Group,7,FALSE)) ->  | AO213: X
AO214: X
D215: Notes: | E215: 254 PLATINUM Plus is the ultimate, high-performance lightweight polymer fortified, thin-set adhesive mortar ideal for interior and exterior | AO215: X
E216: installation of ceramic tile, porcelain tile, stone, quarry tile, pavers and brick. 254 PLATINUM Plus is offered in a 25 lb bag providing the | AO216: X
E217: same coverage as a 50 lb bag of traditional adhesive mortar. Featuring unsurpassed bond strength, 254 PLATINUM Plus exceeds ANSI | AO217: X
E218: A118.15, the highest performance standard for a cementitious adhesive mortar. With a 60-minute open time, superior transfer for maximum | AO218: X
E219: coverage, easy to spread creamy consistency and a lightweight formula for easier handling, 254 PLATINUM Plus is the ideal thin-set | AO219: X
E220: adhesive mortar for most every installation including submerged applications. | AO220: X
AO221: X
G222: Approximate Coverage per 25 lb Bag | AO222: X
G223: NOTCH TROWEL | L223: COVERAGE | AO223: X
G224: 1/4" x 1/4" | L224: 80-95 sq ft | AO224: X
G225: 1/4" x 3/8" | L225: 60-70 sq ft | AO225: X
G226: 1/2" x 1/2" | L226: 35-40 sq ft | AO226: X
AO227: X
D228: 279 Tri-Lite Lightweight Mortar | R228: Item # Lookup: | S228: LT0279 | AO228: X
B230: Mortars/Ahesive | E230: 30 lb | G230: Bag | I230: Grey | Q230: Stock | S230: =IF(Suggested="Yes",AA230,AG230) -> 59.65 | T230: EA | U230: =+Instructions!$B$3 -> I | W230: =+Instructions!$C$22 -> 0 | X230: =ROUND($AA230*(1-W230)+0.004999,2) -> 59.65 | AA230: 59.65 | AB230: =+W230 -> 0 | AC230: =+X230 -> 59.65 | AD230: =(AG230-AC230)/AG230 -> 0 | AF230: 1 | AG230: =SUM(AJ230:AL230)+AE230 -> 59.65 | AJ230: =ROUND(AC230/(1-VLOOKUP(AF230,Group,2,FALSE)),2) -> 59.65 | AK230: =IF(VLOOKUP(AF230,Group,5,FALSE)="YES",VLOOKUP(ROUND(ROUND(AJ230,1)-AJ230,2),Round,2,FALSE)+VLOOKUP(AF230,Group,6,FALSE),0) -> 0 | AL230: =IF(VLOOKUP(AF230,Group,7,FALSE)="",0,ROUND(AJ230-0.04999,1)-AJ230+AM230) -> 0 | AM230: =IF(VLOOKUP(AF230,Group,7,FALSE)="","",VLOOKUP(AF230,Group,7,FALSE)) ->  | AO230: X
... 1361 more rows

Sheet Websites
A1: Easy Access Website links
A3: ConestogaTile's Website | B3: www.conestogatile.com
A5: Manufacturer's Home Page | B5: www.laticrete.com
A8: Product | B8: Direct Website Link
A9: All Products | B9: https://laticrete.com/en/our-products

Sheet Changes
A1: Date
A2: Announced | B2: Series | C2: Description
A4: New Products
A5: 2019-01-02 | B5: Multimax Lite | C5: Lightweight one-step polymer fortified Large and Heavy Tile mortar for interior and exterior installation.
A6: 2019-03-01 | B6: 9209 Fracture Ban SC | C6: A thin, load bearing, self-curing liquid rubber polymer that can be easily applied in a single coat to form a flexible seamless antifracture membrane.
A7: 2019-03-01 | B7: 9259 Hydro Ban Cementitious Waterproofing Membrane | C7: A one component, polymer fortified, cement based waterproofing material that mixes only with water.
A8: 2019-03-01 | B8: Hydro Ban Bonding Flange Drain/Tile-In Drain | C8: New Hydro Ban Bonding Flange Drain/Tile-In Drain kits will now include 4" x 4" Grates. (Kits with the 5" x 5" Grates are discontinued.)
A9: 2019-03-01 | B9: Hydro Ban Drain Collars | C9: The HYDRO BAN Deep Drawn Drain Collars are available in 3/4" and 1-1/2" depths and a 17" diameter.
A10: 2019-03-01 | B10: Hydro Ban Drain Grate | C10: New 4" x 4" Grate size. (The 5" x 5" Grates are discontinued.)
A11: 2019-03-01 | B11: Hydro Ban Linear Drain | C11: Hydro Ban Linear Drain is now sold in two parts: the HYDRO BAN Linear Drain Trough and the HYDRO BAN Linear Drain Grate.
A12: 2019-03-01 | B12: SpectraLOCK PRO Premium TRANSLUCENT Grout | C12: High performance epoxy grout that offers a unique opaque color.
A13: 2020-03-10 | B13: 170.5 Sound & Crack Isolation Mat | C13: High performance acoustical underlayment system.
A14: 2020-03-10 | B14: 3701 Lite Mortar and 3701 Lite Mortar R | C14: The ultimate lightweight, versatile, high performance non-sag mortar.
A15: 2020-03-10 | B15: Hydro Ban Curb | C15: The Hydro Ban Curb is a 24" long EPS curb to be used with the Hydro Ban Shower Pan and is sold separately. The Hydro Ban Curb should be waterproofed using Hydro Ban Sheet Membrane.
A16: 2020-03-10 | B16: Hydro Ban Shower Pan | C16: The Hydro Ban Shower Pan comes packaged with a pro-sloped pan and a piece of Hydro Ban Sheet Membrane to cover the pan.
A17: 2020-03-10 | B17: Hydro Ban Shower Pan Kit | C17: The Hydro Ban Shower Pan Kit allow the contractor to quickly and easily complete a long-lasting installation, without the hassle of determining the essential components required. This kit comes packaged with the following Hydro Ban accessories: data sheet, pro-sloped pan, curb(s) to fit longest side of pan, adhesive & sealant 10.3 FL. OZ. cartridge, sheet membrane for walls and for pan, sealing tape for installation, 4 inside corners, 2 outside corners, 1 pipe seal, 1 mixing valve seal & 2 bonding flange drain rings.
A18: 2020-03-10 | B18: NXT Level SP | C18: Medium/coarse-sanded wear surface and self-leveling underlayment.
A19: 2020-03-10 | B19: Select-Bond Adhesive, Rapid Kits, Non-Sag Kits and High Performance Kits. | C19: Modular Adhesive Mortar System
A20: 2020-03-10 | B20: SpectraLock 1 | C20: Pre-Mixed Grout with Epoxy Performance.
A21: 2020-03-10 | B21: Vapor Ban Primer ER | C21: All-In-One moisture vapor barrier and primer applied in one-step.
A22: 2021-03-08 | B22: 296 Glass Tile Adhesive Lite | C22: New lightweight formula; same volume in bags at 1/2 the weight. (Replaces 285 Glass Tile Adhesive.)
A23: 2021-03-08 | B23: 903 NXT Level Flow | C23: A cement-based, pump friendly, high flowing, easy-to-use underlayment for use in leveling interior substrates.
A24: 2021-03-08 | B24: 9209 Fracture Ban SC | C24: Now available in Gallon size.
A25: 2021-03-08 | B25: ELEVATION Pins | C25: Customizable pins to ensure your pour will be level. Memory plastic snaps back - if bent, self-adhesive strips keeps pins in place.
A26: 2021-03-08 | B26: Hydro Ban Shower Pan | C26: 48" x 48" #9243-4848-CDP-BF Barrier Free Pan with Center Drain Location added.
A27: 2021-03-08 | B27: NIVCOMP Digital Level | C27: Offers a range of advantages over traditional leveling equipment. Comes in a rugged self-contained kit.
A28: 2021-03-08 | B28: NXT Tool Kit | C28: Tackle any NXT self-leveling underlayment / overlayment application with this high quality tool kit.
A29: 2021-05-17 | B29: 918 NXT Skim Lite | C29: Skim Lite is a premium quality, fast-drying, polymer modified, cement-based underlayment designed for skim coating, smoothing and leveling prior to the application of floor coverings.
A30: 2021-05-17 | B30: 9250 Hydro Ban XP | C30: A premium thin, load bearing waterprooing/crack isolation membrane that does not require the use of fabric in field areas coves and corners. It can be used in both interior and exterior as well as residential and commercial applications.
A31: 2021-05-17 | B31: 9265 Hydro Barrier Plus | C31: A thin, load bearing waterproofing/crack isolation membrane for interior and exterior applications. It can be easily applied with a paint brush, roller or airless sprayer.
A32: 2022-01-05 | B32: 1200 SpectraLOCK Grout Part C | C32: Colors 09 Frosty, 87 Stormy Grey, 93 Fossil, 94 Walnut, 95 Mink, 96 Steamship and 97 Iron added.
A33: 2022-01-05 | B33: 2300 Ready-To-Use Grout | C33: Colors 09 Frosty, 87 Stormy Grey, 93 Fossil, 94 Walnut, 95 Mink, 96 Steamship and 97 Iron added.
A34: 2022-01-05 | B34: 2500 PermaColor Grout | C34: Colors 09 Frosty, 87 Stormy Grey, 93 Fossil, 94 Walnut, 95 Mink, 96 Steamship and 97 Iron added.
A35: 2022-01-05 | B35: 2600 PermaColor Select Color Kit | C35: Colors 09 Frosty, 87 Stormy Grey, 93 Fossil, 94 Walnut, 95 Mink, 96 Steamship and 97 Iron added.
A36: 2022-01-05 | B36: 279R Tri-Lite Rapid Mortar | C36: A fast setting, lightweight, high performance tri-purpose mortar designed for Large and Heavy Tile, for wall installations.
A37: 2022-01-05 | B37: 3100 SpectraLOCK 1 Pre-Mixed Epoxy Performance Grout | C37: Colors 09 Frosty, 87 Stormy Grey, 93 Fossil, 94 Walnut, 95 Mink, 96 Steamship and 97 Iron added.
A38: 2022-01-05 | B38: 6200 LATASIL | C38: Colors 09 Frosty, 87 Stormy Grey, 93 Fossil, 94 Walnut, 95 Mink, 96 Steamship and 97 Iron added.
A39: 2022-01-05 | B39: 7200 PREMIUM ACRYLIC CAULK (Sanded) | C39: Colors 09 Frosty, 87 Stormy Grey, 93 Fossil, 94 Walnut, 95 Mink, 96 Steamship and 97 Iron added.
A40: 2022-01-05 | B40: NXT Level SP | C40: Color White added and is available in a 50 LB bag.
A41: 2022-06-14 | B41: 177 Strata Mat | C41: 45" x 32" Sheet size added, (10 per SF Sheet).
A42: 2022-06-14 | B42: 906 NXT Vapor Reduction Coating | C42: 2-Part epoxy coating for controlling the moisture vapor emission rate from concrete slabs prior to installing NXT underlayments.
A43: 2022-06-14 | B43: 911 Vapor Ban E | C43: A single-coat, 100% solids, liquid applied 2-part epoxy coating specifically designed for controlling the moisture vapor emission rate from new or existing concrete slabs.
A44: 2022-06-14 | B44: 912 Vapor Ban ER | C44: A single-coat, 100% solids, rapid curing single-coat moisture vapor barrier designed for controlling the moisture vapor emission rate from new or existing concrete slabs.
A45: 2022-06-14 | B45: Hydro Ban Board & Accessories | C45: Lightweight construction panel designed to be used in bonded tile or stone installations. Galvanized Tab Washers & Screws.
A46: 2022-06-14 | B46: Hydro Ban Collars | C46: Pipe Collar and Mixing Valve Collar available.
A47: 2022-06-14 | B47: Hydro Ban Preformed Corners | C47: Inside and Outside corners available.
A48: 2022-06-14 | B48: Hydro Ban Sealing Tape | C48: Available in two widths and two roll lengths.
A49: 2022-06-14 | B49: Hydro Ban Sheet Membrane | C49: A high performance low-perm waterproofing sheet membrane for use in interior residential & commercial waterproofing applications including steam showers and steam rooms.
A50: 2022-06-14 | B50: Paver Link | C50: Paver Joint Sand
A51: 2022-06-14 | B51: Pro-Mix Station | C51: As a pourable cart, the Pro-Mix Station contains the material, eliminates harmful dust, and provides combined batch consistency. The removable drill allows for the mixing of tile/stone adhesive and repair mortars. The Pro-Mix Station can be used with many Laticrete products, such as self-leveling underlayments, overlayments, and epoxies. 3 bag capacity/14.5 amp/110 V drill/2-speed motor with 0-250 abd 0-580 RPM/2 mixing paddles for high and low viscosity/Rotating caster wheels/Pourable and dust extractor/Steel frame.
A52: 2023-07-13 | B52: 2500 PermaColor Grout | C52: New & Improved formula. Now with 20% increased strength, 30% enhanced stain resistance and formulated without sand* for a safer installation. (*OSHA action level set forth in OSHA’s Respirable Crystalline Silica (RCS) standard for construction, 29 CFR 1926.1153, as certified by an independent laboratory to be below the OSHA action level for respirable crystalline silica — see www.laticrete.com/silica.)
A53: 2023-07-13 | B53: 2600 PermaColor Select Base Grout | C53: New & Improved formula. Now with 20% increased strength, 20% enhanced stain resistance and formulated without sand* for a safer installation. (*OSHA action level set forth in OSHA’s Respirable Crystalline Silica (RCS) standard for construction, 29 CFR 1926.1153, as certified by an independent laboratory to be below the OSHA action level for respirable crystalline silica — see www.laticrete.com/silica.) Also, now available in a smaller, more convenient 10lb regular base bag size that replaces the 12.5lb and 25lb regular base bag sizes.
A54: 2023-07-13 | B54: 2600 PermaColor Select Color Kit | C54: Now available in single packets for a 1:1 mix ratio with base.
A55: 2023-07-13 | B55: 3100 SpectraLOCK 1 Pre-Mixed Epoxy Performance Grout | C55: Now available in color 00 Translucent.
A56: 2023-07-13 | B56: Hydro Ban Bonding Flange Drain | C56: Redesigned and streamlined with direct feedback from installers in the field, Laticrete's next generation of tile-in drains and bonding flanges are intended to work with a greater number of tile types, sizes, and tile as thin as 1/8”. Now also available in contractor 10 packs.
A57: 2023-08-09 | B57: 1200 SpectraLOCK Dazzle | C57: Color Green Glow added and must be purchased in full cartons, 6 Pouches/CTN.
A58: 2023-08-25 | B58: 919 NXT Level Plus Lite | C58: NXT Level Plus Lite is a premium lightweight, fiber-reinforced, cement-based underlayment designed for leveling a variety of interior projects using concrete, plywood, OSB, or gypsum substrates prior to the application of floor coverings. At nearly half the cured weight of a standard self-leveling underlayment, it’s a great option for installations with load-bearing concerns. NXT Level Plus Lite is 50% lighter in packaging weight than traditional self-leveling underlayment products and contains no respirable crystalline silica levels that exceed the OSHA action level. This versatile, rapid-setting self-leveling underlayment is pump-friendly and pourable up to 4" in depth. NXT Level Plus Lite provides consistent results and produces a flat, smooth, and hard surface in as soon as 24 hours.
A59: 2023-08-25 | B59: 254 Platinum Plus | C59: 254 PLATINUM Plus is the ultimate, high-performance lightweight polymer fortified, thin-set adhesive mortar ideal for interior and exterior installation of ceramic tile, porcelain tile, stone, quarry tile, pavers and brick. 254 PLATINUM Plus is offered in a 25 lb bag providing the same coverage as a 50 lb bag of traditional adhesive mortar. Featuring unsurpassed bond strength, 254 PLATINUM Plus exceeds ANSI A118.15, the highest performance standard for a cementitious adhesive mortar. With a 60-minute open time, superior transfer for maximum coverage, easy to spread creamy consistency and a lightweight formula for easier handling, 254 PLATINUM Plus is the ideal thin-set adhesive mortar for most every installation including submerged applications.
A60: 2023-08-25 | B60: Pro-Kart | C60: The Pro-Kart when paired with the Pro-Mix Station provides an ideal and safe solution to allow for continuous mixing, optimal placement, and reduced spillage. Keep the job moving and let the Pro-Kart handle the delivery. The Pro-Kart can be used with many LATICRETE products, such as self-leveling underlayments, overlayments, and epoxy coatings.
A61: 2023-09-28 | B61: 2600 PermaColor Select Base Grout | C61: 20lb regular base grout bag size added.
A62: 2024-02-14 | B62: 177 Strata Mat | C62: 54 SF Roll size added, 45" x 14' 3".
A63: 2024-02-14 | B63: 921 Primer Plus | C63: Primer Plus is a premium, multi-purpose primer designed to increase bond strength and maximize the performance of self-leveling underlayments and crack isolation peel and stick membranes on concrete, gypsum, wood and more. This high-performing concentrate is formulated with nanoparticles to penetrate deep into substrates while offering superior adhesion for long-lasting interior applications.
A64: 2024-02-14 | B64: Hydro Ban Bonding Flange Drain | C64: 9246-0404-MBP2 Bonding Flange Drain with Matte Black Grate added.
A65: 2024-02-14 | B65: Hydro Ban Linear Drain Offset Oval Grate | C65: Color Matte Black Grate added and is available in all 8 sizes.
A66: 2024-02-14 | B66: Hydro Ban Point Drain Grate | C66: 9248-0404-MB 4" x 4" Matte Black Point Drain Grate added.
A67: 2024-02-14 | B67: Replacement Liner for Pro-Mix Station | C67: 7319-LINER-CR Replacement liner for the Pro-Mix Station.
A68: 2025-05-19 | B68: Sure Set LHT | C68: Designed for performance and ease of use, this versatile adhesive mortar is the ideal solution for a wide range of tile and stone installations. With non-sag and non-slump performance, this tile adhesive is perfect for both vertical and floor applications, including large and heavy tiles (LHT), while meeting ANSI A118.4HT and ANSI A118.11 for use over plywood and various other substrates.
A69: 2025-05-16 | B69: NXT Pedestal System | C69: The NXT Pedestal System lets you create elevated surfaces using a wide variety of finishes including pavers, wood, and more. With only three main components, installs are fast and easy, adaptable to nearly any challenge, and still allow access to the substrate below.
A70: 2025-10-24 | B70: 289 MultiMax 1 | C70: A revolutionary, ready-to-use adhesive that meets the highest performance requirements of a cementitious adhesive mortar (ANSI A118.15). Ideal for both Large and Heavy Tile and thin-bed installations. No mixing or water required. For interior and exterior installation of ceramic tile, porcelain tile, glass tile, stone, quarry tile, pavers and brick. MULTIMAX 1 Pre-Mixed Adhesive Mortar features non-sag performance on walls and maximum buildup of up to ¾" without shrinkage on floors. It has a smooth, easy-to-trowel consistency.
A71: 2025-10-24 | B71: 915 Vapor Ban Primer W | C71: A dual-coat, re-usable, liquid applied 1-part membrane specifically designed for controlling the moisture vapor emission rate from new or existing concrete slabs up to 100% RH. VAPOR BAN Primer W will perform as a primer prior to installing NXT Level self-leveling underlayment. Combining two steps into one. Saving on material cost.
A72: 2025-10-24 | B72: 9277 Hydro Ban 1 | C72: HYDRO BAN 1 is a single component self-curing liquid rubber polymer that is applied in a single coat and forms a flexible, seamless waterproofing membrane. HYDRO BAN 1 is a thin, load bearing waterproofing/crack isolation membrane with extreme performance. HYDRO BAN 1 is specifically designed to handle a wide variety of environmental/substrate conditions, such as substrate temperatures as low as 35°F and also be used in steam showers and steam rooms. HYDRO BAN 1 does not require the use of fabric in the field, coves or corners. HYDRO BAN 1 bonds directly to a wide variety of substrates. It features a hi-vis green color for enhanced visibility and easier lay-out. Equipped with anti-microbial protection.
A73: 2025-11-05 | B73: Hydro Ban Peel & Stick Sheet Membrane Accessories | C73: HYDRO BAN Modular Pre-Sloped Shower Pan is a component of the expanded HYDRO BAN line of products. The 4 piece modular system is designed for easier transport, storage, dry-fitting, and installation flexibility. It does not include an integrated drain, available in center and off-center drain placements, low-profile builds, or barrier-free designs. Includes: (4) Piece Shower Pan, Peel & Stick Sealing Tape and Peel & Stick Adhesion Ring for on-site assembly and waterproof joint sealing. Fully compatible with the HYDRO BAN Shower System.
A74: 2025-11-05 | B74: Hydro Ban Modular Pre-Sloped Shower Pan + Preformed Curb | C74: HYDRO BAN Modular Pre-Sloped Shower Pan is a component of the expanded HYDRO BAN line of products. The 4 piece modular system is designed for easier transport, storage, dry-fitting, and installation flexibility. It does not include an integrated drain, available in center and off-center drain placements, low-profile builds, or barrier-free designs. Includes: (4) Piece Shower Pan, Peel & Stick Sealing Tape and Peel & Stick Adhesion Ring for on-site assembly and waterproof joint sealing. Fully compatible with the HYDRO BAN Shower System.
A78: Discontinued Products
A79: 2019-03-01 | B79: 211 Powder Adhesive | C79: Remaining Grey 50 lb Bag.
A80: 2019-03-01 | B80: 220 Marble & Granite Mortar | C80: Both Grey and White 50 lb Bags.
A81: 2019-03-01 | B81: 255 MultiMax Lightweight Thin-Set Mortar | C81: Both Grey and White 40 lb Bags.
A82: 2019-03-01 | B82: 4237 Latex Additive | C82: Remaining 5 Gallon Pail size.
A83: 2019-03-01 | B83: 92 Blue Anti-Fracture Membrane | C83: 5 Gallon Pail of Liquid only, #S-09200-NS-05.
A84: 2019-03-01 | B84: 972 NXT Decoupling Mat | C84: 39" x 150' 488 SF Roll.
A85: 2019-03-01 | B85: Dupont StoneTech - Clean | C85: D15062814 Heavy Duty Coating Stripper Quart and D15062823 Heavy Duty Coating Stripper Gallon sizes.
A86: 2019-03-01 | B86: Hydro Ban Bonding Flange Drain/Tile-In Drain | C86: All Hydro Ban Bonding Flange Drain/Tile-In Drain kits have been discontinued as Laticrete is changing the Grate size from 5" x 5" to 4" x 4". Note, products with the new sized grate will have new item numbers and pricing.
A87: 2019-03-01 | B87: Hydro Ban Drain Grate | C87: All 5" x 5" Grates. Being replaced with 4" x 4" Grates. Note, the new sized grate will have new item numbers and pricing.
A88: 2019-03-01 | B88: Hydro Ban Linear Drain | C88: All Hydro Ban Linear Drains that included the trough and the grate are discontinued. The Hydro Ban Linear Drain is now sold in two separate parts and not together as one unit.
A89: 2020-03-10 | B89: Caulks/Sealants | C89: The following 7100 Unsanded Caulk colors are discontinued: 03 Silk, 16 Siltstone, 30 Sand Beige, 34 Sandstone, 38 River Rock, 41 Kashmir, 43 Chocolate Truffle, 46 Quarry Red, 50 Sea Glass, 52 Toasted Almond, 55 Tawny, 56 Desert Khaki, 57 Hot Cocoa, 58 Terra Cotta, 59 Espresso, 61 Parchment, 66 Chestnut Brown, 67 Autumn Green, 81 Butter Cream and 92 Saltillo.
A90: 2020-03-10 | B90: Grouts | C90: 1776 Grout Enhancer in all sizes.
A91: 2020-03-10 | B91: Latapoxy Epoxy Adhesives | C91: 210 Modified Epoxy Adhesive in both the Single Unit White Pail and the Double Unit Grey Carton.
A92: 2020-03-10 | B92: Mortars | C92: 272 Premium Thin-Set Mortar Grey 50 lb bag.
A93: 2020-03-10 | B93: Mortars | C93: 258 Sure Set Thin-Set Mortar Grey and White 50 lb bag.
A94: 2020-03-10 | B94: Mortars | C94: 253R Gold Rapid Thin-Set Mortar White 25 lb & 50 lb bag. 253R Gold Rapid Thin-Set Mortar Grey 25 lb bag.
A95: 2020-03-10 | B95: Shower Systems | C95: 9450-0038-2 3' x 5' x 3/8" and 9450-0112-2 3' x 5' x 1-1/2" Hydro Ban Board sizes. 9455-0412-MC 4-1/2" Hydro Ban Mixing Valve Collar. 9315-0808-S 8" x 8" Hydro Ban Preformed Soap Niche.
A96: 2021-03-08 | B96: 285 Glass Tile Adhesive | C96: (Replaced with 296 Glass Tile Adhesive Lite improved version.)
A97: 2021-03-08 | B97: 909 NXT Epoxy Primer | C97: All sizes. (Suggested Replacement is the 905 NXT Primer.)
A98: 2021-03-08 | B98: Hydro Ban Board Accessories | C98: 9450-0200-S 2" Screw. (Suggested Replacement is the 9450-0300-S 3" Screw.)
A99: 2021-03-08 | B99: Hydro Ban Sealing Tape | C99: 9455-0716-2 Sealing Tape Roll 7.25" x 16' 5". (Suggested Replacement is the 9455-0516-2 5" x 16' 5" Sealing Tape Roll.) 9455-0798-2 Sealing Tape Roll 7.25" x 98' 5". (Suggested Replacement is the 9455-0598-2 5" x 98' 5" Sealing Tape Roll.)
A100: 2021-05-17 | B100: 902 NXT Skim | C100: 10lb bag. (Suggested Replacement is the 918 NXT Skim Lite 8lb bag.)
A101: 2021-05-17 | B101: 9256 Hydro Barrier | C101: All sizes. (Suggested Replacement is the 9265 Hydro Barrier Plus.)
A102: 2022-01-05 | B102: 1200 SpectraLOCK Grout Part C | C102: Colors 16 Siltstone, 38 River Rock, 41 Kashmir, 43 Chocolate Truffle, 50 Sea Glass, 55 Tawny and 92 Saltillo only.
A103: 2022-01-05 | B103: 2300 Ready-To-Use Grout | C103: Colors 16 Siltstone, 38 River Rock, 41 Kashmir, 43 Chocolate Truffle, 50 Sea Glass, 55 Tawny and 92 Saltillo only.
A104: 2022-01-05 | B104: 2500 PermaColor Grout | C104: Colors 16 Siltstone, 38 River Rock, 41 Kashmir, 43 Chocolate Truffle, 50 Sea Glass, 55 Tawny and 92 Saltillo only.
A105: 2022-01-05 | B105: 2600 PermaColor Select Color Kit | C105: Colors 16 Siltstone, 38 River Rock, 41 Kashmir, 43 Chocolate Truffle, 50 Sea Glass, 55 Tawny and 92 Saltillo only.
A106: 2022-01-05 | B106: 3100 SpectraLOCK 1 Pre-Mixed Epoxy Performance Grout | C106: Colors 16 Siltstone, 38 River Rock, 41 Kashmir, 43 Chocolate Truffle, 50 Sea Glass, 55 Tawny and 92 Saltillo only.
A107: 2022-01-05 | B107: 6200 LATASIL | C107: Colors 16 Siltstone, 38 River Rock, 41 Kashmir, 43 Chocolate Truffle, 50 Sea Glass, 55 Tawny and 92 Saltillo only.
A108: 2022-01-05 | B108: 7200 PREMIUM ACRYLIC CAULK (Sanded) | C108: Colors 16 Siltstone, 38 River Rock, 41 Kashmir, 43 Chocolate Truffle, 50 Sea Glass, 55 Tawny and 92 Saltillo only.
A109: 2022-06-27 | B109: Multipurpose Bonding Primer | C109: 2700 Select-Bond Adhesive, both Grey and White 25# bags.
A110: 2022-06-27 | B110: Multipurpose Bonding Primer | C110: Select-Bond High Performance (A118.15) Kit 27HP-1001-2.
A111: 2022-06-27 | B111: Multipurpose Bonding Primer | C111: Select-Bond Non-Sag Kit 27NS-1001-2.
A112: 2022-06-27 | B112: Multipurpose Bonding Primer | C112: Select-Bond Rapid Kit 27OR-1001-2.
A113: 2022-06-27 | B113: THIN-SET AND MORTAR ADDITIVES | C113: 333 Super Flexible Additive 2 Gallon Jug only.
A114: 2022-06-27 | B114: UNDERLAYMENTS | C114: 903 NXT Embossing Admix. 906 NXT Vapor Reduction Coating (Replaced with Vapor Ban E).
A115: 2022-10-20 | B115: Hydro Ban Shower & Drain System | C115: 9243-3838-CDP 38" x 38" Hydro Ban Shower Pan and the 9243-3838-CDK 38" x 38" Hydro Ban Shower Pan Kit.
A116: 2023-07-13 | B116: 2600 PermaColor Select Base Grout | C116: 12.5lb and 25lb regular base bag sizes only. (Being replaced with a 10lb regular base bag size.)
A117: 2023-07-13 | B117: 2600 PermaColor Select Color Kit | C117: Colors 16 Siltstone, 38 River Rock, 41 Kashmir, 43 Chocolate Truffle, 50 Sea Glass, 55 Tawny and 92 Saltillo only.
A118: 2023-07-13 | B118: Hydro Ban Bonding Flange Drain | C118: The following items are completely discontinued: 9246-0404-BS-ABS w/ 4" x 4" Brushed Stainless Steel Grate, 9246-0404-PS-ABS w/ 4" x 4" Polished Stainless Steel Grate, 9246-0404-ORB-ABS w/ 4" x 4" Oil Rubbed Bronze Grate and 9246-0404-TI-ABS with/ 4" x 4" Tile-In Drain. The remaining items are discontinued but have a new, redesigned and streamlined replacement: 9246-0404-BS-PVC w/ 4" x 4" Brushed Stainless Steel Grate, 9246-0404-PS-PVC w/ 4" x 4" Polished Stainless Steel Grate, 9246-0404-ORB-PVC w/ 4" x 4" Oil Rubbed Bronze Grate, 9248-0BFD-PVC PVC, no Grate included, 9248-0BFD-ABS ABS, no Grate included and 9246-0404-TI-PVC with/ 4" x 4" Tile-In Drain.
A119: 2024-02-14 | B119: 178 Fracture Ban Primer | C119: All sizes are discontinued. (Suggested Replacement is the new Primer Plus.)
A120: 2024-02-14 | B120: 905 NXT Primer | C120: All sizes are discontinued. (Suggested Replacement is the new Primer Plus.)
A121: 2024-02-14 | B121: Caulks/Sealants | C121: The following 7100 Unsanded Caulk colors are discontinued: 53 Twilight Blue and 91 Slate Grey.
A122: 2024-02-14 | B122: Hydro Ban Board | C122: #9450-0100-2, 3' x 5' x 1" Board only.
A123: 2024-02-14 | B123: Hydro Ban Preformed Seat | C123: #9302-2323-T, 23" x 23" x 20" Triangle seat only.
A124: 2024-02-14 | B124: Hydro Ban Pre-Sloped Shower Pans | C124: The following pans only: 9465-3648-BRS 36" x 48" BRS Center Drain, 9465-4848-BRS 48" x 48" BRS Center Drain, 9465-3660-BRS 36" x 60" BRS Center Drain, 9465-4860-BRS 48" x 60" BRS Center Drain and 9465-3866-BRS 38" x 66" BRS Off Center Drain.
A125: 2024-06-19 | B125: 7100 Unsanded Premium Acrylic Caulk | C125: Color 7185 Almond only.
A126: 2025-05-19 | B126: 1200 SpectraLOCK Dazzle (Part D Component) | C126: Colors 1274 Blue Hawaii, 1277 Candied Apple, 1270 Lemonade, 1271 Limeade, 1272 Pretty in Pink, 1275 Purple Haze, 1276 Ruby Slippers and 1273 Tangerine only.
A127: 2025-05-19 | B127: 7100 Unsanded Premium Acrylic Caulk | C127: Colors 7127 Hemp, 7139 Mushroom and 7140 Latte only.
A128: 2026-01-26 | B128: Hydro Ban Shower Pan | C128: The following Pans listed below have been discontinued:
C129: 9243-4848-CDP Center Drain Location
C130: 9243-4848-CDP-BF Center Drain Location (Barrier Free)
C131: 9243-3260-CDP Center Drain Location
C132: 9243-3260-OCDP Off-Center Drain Location
C133: 9243-4872-CDP Center Drain Location
C134: 9243-7272-CDP Center Drain Location
A135: 2026-01-26 | B135: Hydro Ban Shower Pan Kit | C135: The following Pan Kits listed below have been discontinued:
C136: 48" x 48" 9243-4848-CDK Center Drain Location
C137: 32" x 60" 9243-3260-CDK Center Drain Location
C138: 32" x 60" 9243-3260-OCDK Off-Center Drain Location
C139: 48" x 72" 9243-4872-CDK Center Drain Location
C140: 72" x 72" 9243-7272-CDK Center Drain Location
A144: Changes
A145: 2019-05-22 | B145: 125 Sound & Crack Adhesive | C145: Laticrete renamed this product and is now known as 125 TRI MAX. New & Improved Shelf Life. Factory Sealed containers of this product are guaranteed to be of first quality for two (2) years if stored at temperatures of >32°F and <110°F and off the ground in a dry area. Refer to the 125 TRI MAX data sheet for more complete information.
A146: 2019-05-22 | B146: StoneTech Products | C146: Laticrete changed the part numbers for all the StoneTech items. The carton quantity has changed on the following items from 12 EA/CTN to 6 EA/CTN: KlenzAll Cleaner Ready-To-Use 24 oz. Spray, DeepKlenz Cleaner Ready-To-Use 24 oz. Spray, Revitalizer Cleaner & Protector Ready-To-Use - Citrus 24 oz. Spray, Revitalizer Cleaner & Protector Ready-To-Use - Cucumber 24 oz. Spray, Stone & Tile Cleaner Ready-To-Use 24 oz. Spray and the Quartz & Tile Cleaner Ready-To-Use 24 oz. Spray. The name of the "Sealer" has changed to "Stone, Tile & Stone Sealer". The name of the "Enhancer Sealer" has changed to "Enhancer & Sealer". The name of the "High Gloss Finishing Sealer" has changed to "High Gloss Finish & Sealer". The name of the "Semi Gloss Finishing Sealer" has changed to "Semi Gloss Finish & Sealer". The name of the "Polish" has changed to "Stone Polish".
A147: 2020-03-16 | B147: Mortars | C147: We were misinformed by Laticrete concerning the discontinuation of the 253R Gold Rapid Thin-Set Mortar color White 50 lb bag. This item, (Laticrete #0253-0050-22-1), is NOT discontinued and will continue to be stocked by Conestoga Tile.
A148: 2021-02-19 | B148: NXT Level Plus | C148: NXT Level Plus is now fiber reinforced. Part number changing from 901 to 902 for the improved version.
A149: 2021-02-19 | B149: SpectraLock 1 | C149: Removing color 00 Translucent for now due to production issues. May be available later in 2021 but no firm date.
A150: 2023-08-09 | B150: 1200 SpectraLOCK Dazzle | C150: A New & Improved Dazzle Design Additive is available now and is sold in full cartons of 6 Pouches/CTN. One (1) Pouch of Dazzle Design Additive will be used within one (1) Pail (Full Unit) of either; SpectraLOCK Pro Premium, SpectraLOCK PRO Premium Translucent Grout, SpectraLOCK 1 Pre-Mixed Grout -or- Ready-To-Use Pre-Mixed Grouts. When using a Mini Unit, use 1/4 Pouch and add 4 Pouches to a Commercial Unit.
A151: 2023-08-25 | B151: 257 Titanium | C151: Renamed 254 Platinum Plus.
A152: 2024-09-27 | B152: Hydro Ban Bonding Flange Drain | C152: 9246-0404-PSP2 PVC Bonding Flange with 4" x 4" Polished Stainless Steel Grate will no longer be "Stocked".
A153: 2024-09-27 | B153: Mortars | C153: 3701 Lite Mortar will no longer be "Stocked".
A154: 2024-09-27 | B154: Waterproofing | C154: 9266 Hydro Ban Quick Cure 1 Gallon Pail is no longer being "Stocked".
